bitfinex/quotes_BTCUSD_20240811
["timestamp","ask_amount","ask_price","bid_price","bid_amount"]
[1723346677049,0.875217,61401.0,61400.0,0.0009119]
[1723346678030,0.885217,61401.0,61400.0,0.0009119]
[1723346678558,1.3776224,61401.0,61400.0,0.0009119]
[1723346678710,1.5584224,61401.0,61400.0,0.0009119]
[1723346678915,1.544744,61401.0,61400.0,0.0009119]
[1723346679135,1.5474224,61401.0,61400.0,0.0009119]
[1723346679467,1.533744,61401.0,61400.0,0.0009119]
[1723346679840,1.539744,61401.0,61400.0,0.0009119]
[1723346680027,1.5534224,61401.0,61400.0,0.0009119]
[1723346680628,1.71723732,61401.0,61400.0,0.0009119]
[1723346681023,1.71123732,61401.0,61400.0,0.0009119]
[1723346681471,1.72223732,61401.0,61400.0,0.0009119]
[1723346681671,1.544744,61401.0,61400.0,0.0009119]
[1723346681909,1.533744,61401.0,61400.0,0.0009119]
[1723346682234,1.537744,61401.0,61400.0,0.0009119]
[1723346682438,1.212017,61401.0,61400.0,0.0009119]
[1723346682898,1.198017,61401.0,61400.0,0.0009119]
[1723346683103,1.212017,61401.0,61400.0,0.0009119]
[1723346683301,1.222017,61401.0,61400.0,0.0009119]
[1723346683861,1.547744,61401.0,61400.0,0.0009119]
[1723346684349,1.533744,61401.0,61400.0,0.0009119]
[1723346684545,1.546744,61401.0,61400.0,0.0009119]
[1723346685437,1.208017,61401.0,61400.0,0.0009119]
[1723346685599,1.222017,61401.0,61400.0,0.0009119]
[1723346685799,1.547744,61401.0,61400.0,0.0009119]
[1723346686043,1.222017,61401.0,61400.0,0.0009119]
[1723346686215,1.137117,61401.0,61400.0,0.0009119]
[1723346687627,1.150117,61401.0,61400.0,0.0009119]
[1723346688070,0.013,61401.0,61400.0,0.1700995]
[1723346688518,0.162843,61409.0,61400.0,0.49451196]
[1723346688720,0.48859,61401.0,61400.0,0.08275836]
[1723346688874,0.012,61401.0,61400.0,0.0009119]
[1723346689089,0.012,61401.0,61400.0,0.0072335]
[1723346689470,0.162859,61403.0,61402.0,0.0063216]
[1723346689674,0.162854,61405.0,61402.0,0.0063216]
[1723346689871,0.162844,61409.0,61406.0,0.0063216]
[1723346690159,0.162844,61409.0,61408.0,0.0063216]
[1723346690363,0.325675,61411.0,61406.0,0.1691716]
[1723346690577,0.162839,61410.0,61409.0,0.0063216]
[1723346690725,0.162838,61411.0,61410.0,0.0063216]
[1723346690961,0.162838,61411.0,61406.0,0.162849]
[1723346690962,0.162839,61410.0,61409.0,0.0063216]
[1723346691176,0.162837,61411.0,61409.0,0.0063216]
[1723346691383,0.4713,61412.0,61411.0,0.0063216]
[1723346691779,0.488473,61416.0,61415.0,0.0063216]
[1723346691978,0.142,61420.0,61410.0,0.0607]
[1723346691979,0.162818,61418.0,61417.0,0.0063216]
[1723346692157,0.262818,61418.0,61417.0,0.0063216]
[1723346692357,0.325612,61423.0,61419.0,0.0063216]
[1723346692730,0.325612,61423.0,61416.0,0.0063216]
[1723346692935,0.162816,61419.0,61418.0,0.0063216]
[1723346693265,0.081632,61424.0,61419.0,0.0050216]
[1723346693266,0.162814,61420.0,61419.0,0.0050216]
[1723346693466,0.162809,61422.0,61421.0,0.0050216]
[1723346694017,0.489239,61424.0,61423.0,0.0050216]
[1723346694152,0.263634,61424.0,61423.0,0.0050216]
[1723346694357,0.100832,61424.0,61421.0,0.0050216]
[1723346694577,0.100832,61424.0,61415.0,0.325652]
[1723346694578,0.263634,61424.0,61423.0,0.0050216]
[1723346694851,0.000832,61424.0,61423.0,0.0050216]
[1723346695976,0.000832,61424.0,61417.0,0.0050216]
[1723346695977,0.0808,61422.0,61417.0,0.0050216]
[1723346696175,0.162818,61418.0,61417.0,0.0050216]
[1723346696550,0.1431,61422.0,61419.0,0.0050216]
[1723346696551,0.0808,61422.0,61419.0,0.0050216]
[1723346696756,0.162813,61420.0,61419.0,0.0050216]
[1723346696956,0.0808,61422.0,61420.0,0.0050216]
[1723346696957,0.162812,61421.0,61420.0,0.0050216]
[1723346697670,0.332442,61424.0,61420.0,0.0050216]
[1723346697671,0.162806,61423.0,61420.0,0.0050216]
[1723346697835,0.162805,61423.0,61420.0,0.0050216]
[1723346698052,0.006832,61424.0,61420.0,0.1678346]
[1723346698255,0.163635,61424.0,61421.0,0.0050216]
[1723346698457,0.000832,61424.0,61420.0,0.0050216]
[1723346698737,0.000832,61424.0,61423.0,0.0050216]
[1723346698869,0.000832,61424.0,61423.0,0.2318266]
[1723346699417,0.000832,61424.0,61423.0,0.5574366]
[1723346699634,0.000832,61424.0,61423.0,1.04686152]
[1723346700005,0.000832,61424.0,61423.0,1.12386152]
[1723346700169,0.006832,61424.0,61423.0,1.44947152]
[1723346700370,0.006832,61424.0,61423.0,1.58467376]
[1723346701017,0.006832,61424.0,61423.0,1.61767376]
[1723346701194,0.006832,61424.0,61423.0,2.04328376]
[1723346701406,0.000832,61424.0,61423.0,1.70767376]
[1723346701807,0.002832,61424.0,61423.0,2.03328376]
[1723346702108,0.002832,61424.0,61423.0,2.09976554]
[1723346702334,0.000832,61424.0,61423.0,2.04328376]
[1723346702544,0.001832,61424.0,61423.0,2.06628376]
[1723346703202,0.000832,61424.0,61423.0,2.06325343]
[1723346703412,0.001832,61424.0,61423.0,2.06625343]
[1723346703744,0.001832,61424.0,61423.0,2.06825343]
[1723346704157,0.001832,61424.0,61423.0,2.40208608]
[1723346704568,0.0129147,61444.0,61442.0,1.1443066]
[1723346704738,0.0129147,61444.0,61442.0,1.44912152]
[1723346705999,0.0129147,61444.0,61442.0,1.45112152]
[1723346706627,0.0129147,61444.0,61442.0,1.44912152]
[1723346706829,0.0129147,61444.0,61442.0,1.45212152]
[1723346707243,0.0129147,61444.0,61442.0,1.44709992]
[1723346707455,0.0129147,61444.0,61442.0,1.12661152]
[1723346708048,0.0129147,61444.0,61442.0,0.98561152]
[1723346708251,0.0129147,61444.0,61442.0,0.98509052]
[1723346708540,0.0129147,61444.0,61442.0,0.98209052]
[1723346708697,0.0129147,61444.0,61442.0,0.98409052]
[1723346710146,0.0129147,61444.0,61442.0,1.30960052]
[1723346710362,0.0129147,61444.0,61442.0,1.38660052]
[1723346711292,0.0129147,61444.0,61442.0,1.38460052]
[1723346711619,0.0129147,61444.0,61442.0,1.38760052]
[1723346714605,0.0129147,61444.0,61442.0,1.45160052]
[1723346714820,0.0129147,61444.0,61442.0,1.44860052]
[1723346715255,0.001829,61443.0,61442.0,1.46751452]
[1723346716172,0.000829,61443.0,61442.0,1.46151452]
[1723346716412,0.001829,61443.0,61442.0,1.46751452]
[1723346716882,0.001829,61443.0,61442.0,0.26475052]
[1723346717112,0.080029,61443.0,61442.0,0.4992866]
[1723346717343,0.080029,61443.0,61442.0,0.0110216]
[1723346717849,0.080029,61443.0,61442.0,0.006]
[1723346717850,0.568285,61443.0,61442.0,0.006]
[1723346718072,0.893789,61443.0,61442.0,0.006]
[1723346718319,0.629583,61427.0,61426.0,0.065198]
[1723346718526,0.1412,61427.0,61426.0,0.065198]
[1723346718938,0.303994,61427.0,61426.0,0.0050216]
[1723346719131,0.1412,61427.0,61426.0,0.0050216]
[1723346720014,0.1522,61427.0,61426.0,0.0060216]
[1723346720182,0.314994,61427.0,61426.0,0.0060216]
[1723346720389,0.1412,61427.0,61426.0,0.0050216]
[1723346720589,0.303994,61427.0,61426.0,0.0050216]
[1723346720796,0.1412,61427.0,61424.0,0.0050216]
[1723346720970,0.1412,61427.0,61426.0,0.0050216]
[1723346721177,0.303994,61427.0,61426.0,0.0050216]
[1723346721901,0.311994,61427.0,61426.0,0.0050216]
[1723346722099,0.1492,61427.0,61426.0,0.0050216]
[1723346722299,0.1412,61427.0,61426.0,0.0050216]
[1723346722598,0.1412,61427.0,61418.0,0.0009152]
[1723346722599,0.162816,61419.0,61418.0,0.0009152]
[1723346722998,0.162812,61421.0,61418.0,0.0009152]
[1723346723610,0.32561,61423.0,61418.0,0.0009152]
[1723346723784,0.32561,61423.0,61421.0,0.0050216]
[1723346723991,0.16281,61421.0,61420.0,0.0050216]
[1723346724297,0.32561,61423.0,61418.0,0.0009152]
[1723346724298,0.162816,61419.0,61418.0,0.0009152]
[1723346724509,0.325618,61422.0,61418.0,0.0009152]
[1723346724510,0.162808,61422.0,61418.0,0.0009152]
[1723346724710,0.488431,61421.0,61420.0,0.0050216]
[1723346724873,0.16281,61421.0,61420.0,0.0050216]
[1723346725126,0.003,61421.0,61420.0,0.0050216]
[1723346725331,0.16581,61421.0,61420.0,0.0050216]
[1723346725532,0.16281,61421.0,61420.0,0.0050216]
[1723346725943,0.162814,61420.0,61418.0,0.0059368]
[1723346726152,0.162816,61419.0,61418.0,0.0059368]
[1723346726580,0.89288,61419.0,61418.0,0.0009152]
[1723346726783,0.95578,61419.0,61418.0,0.0009152]
[1723346726979,1.281412,61419.0,61418.0,0.0009152]
[1723346727699,0.95578,61419.0,61418.0,0.0059368]
[1723346727922,0.95578,61419.0,61418.0,0.0009152]
[1723346728535,0.0788,61419.0,61418.0,0.0059368]
[1723346728730,0.162812,61421.0,61420.0,0.0050216]
[1723346729614,0.488433,61421.0,61420.0,0.0050216]
[1723346729811,0.002,61421.0,61420.0,0.0050216]
[1723346730878,0.16481,61421.0,61420.0,0.0050216]
[1723346731159,0.490431,61421.0,61420.0,0.0050216]
[1723346731333,0.490431,61421.0,61420.0,0.00444243]
[1723346731536,0.488448,61419.0,61418.0,0.00535763]
[1723346731737,0.162816,61419.0,61418.0,0.00535763]
[1723346732465,0.002,61421.0,61420.0,0.00444243]
[1723346732739,0.488448,61419.0,61418.0,0.0009152]
[1723346732883,0.489448,61419.0,61418.0,0.0009152]
[1723346733089,0.568248,61419.0,61418.0,0.0009152]
[1723346733293,0.567248,61419.0,61418.0,0.0009152]
[1723346734698,0.89288,61419.0,61418.0,0.0009152]
[1723346735456,0.89388,61419.0,61418.0,0.0009152]
[1723346735781,1.28696957,61419.0,61418.0,0.0009152]
[1723346735978,1.281412,61419.0,61418.0,0.0009152]
[1723346736180,1.382412,61419.0,61418.0,0.0009152]
[1723346736416,1.55622692,61419.0,61418.0,0.0009152]
[1723346737421,1.57178449,61419.0,61418.0,0.0009152]
[1723346737797,1.55622692,61419.0,61418.0,0.0009152]
[1723346738003,1.57178449,61419.0,61418.0,0.0009152]
[1723346738206,1.55622692,61419.0,61418.0,0.0009152]
[1723346739351,1.57178449,61419.0,61418.0,0.0009152]
[1723346740234,1.55622692,61419.0,61418.0,0.0009152]
[1723346740602,1.57178449,61419.0,61418.0,0.0009152]
[1723346740815,0.814317,61401.0,61400.0,0.0009119]
[1723346740991,0.890017,61401.0,61400.0,0.0009119]
[1723346742066,1.315744,61401.0,61400.0,0.0009119]
[1723346742277,1.377744,61401.0,61400.0,0.0009119]
[1723346742465,1.378744,61401.0,61400.0,0.0009119]
[1723346742899,1.053017,61401.0,61400.0,0.0009119]
[1723346743107,0.162863,61401.0,61400.0,0.00535433]
[1723346743308,0.48859,61401.0,61400.0,0.00535433]
[1723346743727,0.814317,61401.0,61400.0,0.0009119]
[1723346743929,0.162863,61401.0,61400.0,0.00535433]
[1723346744258,0.325709,61405.0,61404.0,0.00444243]
[1723346744259,0.488562,61405.0,61404.0,0.00444243]
[1723346744487,0.162853,61405.0,61404.0,0.00444243]
[1723346744862,0.162853,61405.0,61400.0,0.0009119]
[1723346744863,0.162855,61404.0,61403.0,0.00444243]
[1723346745195,0.488574,61403.0,61402.0,0.00444243]
[1723346745811,0.162858,61403.0,61402.0,0.00444243]
[1723346746698,0.488574,61403.0,61402.0,0.00444243]
[1723346747708,0.003,61404.0,61403.0,0.00444243]
[1723346748053,0.162855,61404.0,61403.0,0.00444243]
[1723346748390,0.488566,61404.0,61403.0,0.00444243]
[1723346749000,0.491566,61404.0,61403.0,0.00444243]
[1723346749436,0.81429,61403.0,61402.0,0.00444243]
[1723346749820,0.162858,61403.0,61402.0,0.00444243]
[1723346750662,0.166858,61403.0,61402.0,0.00444243]
[1723346751725,0.492574,61403.0,61402.0,0.00444243]
[1723346752147,0.162858,61403.0,61402.0,0.00444243]
[1723346752326,0.165858,61403.0,61402.0,0.00444243]
[1723346753888,0.162855,61405.0,61404.0,0.00444243]
[1723346755294,0.166855,61405.0,61404.0,0.00444243]
[1723346758079,0.004,61405.0,61404.0,0.00444243]
[1723346758237,0.004,61405.0,61404.0,0.16729743]
[1723346758778,0.004,61405.0,61404.0,0.00444243]
[1723346760803,0.166853,61405.0,61404.0,0.00444243]
[1723346761006,0.492559,61405.0,61404.0,0.00444243]
[1723346761414,0.162859,61403.0,61402.0,0.00444243]
[1723346761834,0.492561,61405.0,61404.0,0.00444243]
[1723346762032,0.329706,61405.0,61400.0,0.0009119]
[1723346762209,0.492559,61405.0,61404.0,0.00444243]
[1723346762815,0.488576,61403.0,61402.0,0.00444243]
[1723346763229,0.16286,61403.0,61402.0,0.00444243]
[1723346763712,0.490576,61403.0,61402.0,0.00444243]
[1723346764616,0.16486,61403.0,61402.0,0.00444243]
[1723346764852,0.16486,61403.0,61400.0,0.0009119]
[1723346764853,0.0769,61401.0,61400.0,0.0009119]
[1723346765030,0.239763,61401.0,61400.0,0.14062156]
[1723346765231,0.56549,61401.0,61400.0,0.00535433]
[1723346765457,0.891217,61401.0,61400.0,0.0009119]
[1723346765657,0.955217,61401.0,61400.0,0.0009119]
[1723346766585,0.62949,61401.0,61400.0,0.00535433]
[1723346767420,0.63449,61401.0,61400.0,0.0009119]
[1723346767731,0.960217,61401.0,61400.0,0.0009119]
[1723346767858,0.62949,61401.0,61400.0,0.0009119]
[1723346768061,0.63149,61401.0,61400.0,0.0009119]
[1723346768676,0.63149,61401.0,61400.0,0.00535433]
[1723346769287,0.62949,61401.0,61400.0,0.00535433]
[1723346769675,0.958217,61401.0,61400.0,0.0009119]
[1723346770261,0.955217,61401.0,61400.0,0.0009119]
[1723346770762,0.63149,61401.0,61400.0,0.00535433]
[1723346770971,0.164863,61401.0,61400.0,0.00535433]
[1723346771179,0.142,61402.0,61401.0,0.00444243]
[1723346771347,0.162858,61403.0,61400.0,0.0009119]
[1723346771348,0.162858,61403.0,61402.0,0.00444243]
[1723346771850,0.16285,61406.0,61405.0,0.00444243]
[1723346772613,0.488551,61406.0,61405.0,0.00444243]
[1723346772815,0.16285,61406.0,61405.0,0.00444243]
[1723346773017,0.162846,61408.0,61407.0,0.00444243]
[1723346773226,0.488536,61408.0,61407.0,0.00444243]
[1723346773422,0.162846,61408.0,61407.0,0.00444243]
[1723346773607,0.488536,61408.0,61407.0,0.00444243]
[1723346773806,0.0769,61411.0,61401.0,0.0829]
[1723346773807,0.488528,61409.0,61408.0,0.00444243]
[1723346774897,0.565451,61406.0,61405.0,0.00444243]
[1723346775101,0.162858,61403.0,61402.0,0.00444243]
[1723346775274,0.488574,61403.0,61402.0,0.00444243]
[1723346775490,0.488574,61403.0,61402.0,0.13971034]
[1723346776220,0.488574,61403.0,61402.0,0.00444243]
[1723346777180,0.489574,61403.0,61402.0,0.00444243]
[1723346777381,0.163858,61403.0,61402.0,0.00444243]
[1723346777581,0.162858,61403.0,61402.0,0.00444243]
[1723346777782,0.162858,61403.0,61402.0,0.13971143]
[1723346778104,0.163858,61403.0,61402.0,0.13971143]
[1723346778292,0.001,61403.0,61402.0,0.13971143]
[1723346778877,0.163858,61403.0,61402.0,0.13971143]
[1723346779098,0.241958,61403.0,61402.0,0.13971143]
[1723346779256,0.240958,61403.0,61402.0,0.13971143]
[1723346779588,0.240958,61403.0,61402.0,0.00444243]
[1723346779737,0.566674,61403.0,61402.0,0.00444243]
[1723346781424,0.488574,61403.0,61402.0,0.00444243]
[1723346781594,0.488574,61403.0,61402.0,0.13970991]
[1723346781595,0.162858,61403.0,61402.0,0.13970991]
[1723346782211,0.162858,61403.0,61402.0,0.00444243]
[1723346783389,0.488574,61403.0,61402.0,0.00444243]
[1723346783593,0.488574,61403.0,61402.0,0.13526691]
[1723346783775,0.172863,61401.0,61400.0,0.0009119]
[1723346783972,1.16394359,61401.0,61400.0,0.0009119]
[1723346784176,1.39195892,61401.0,61400.0,0.0009119]
[1723346784397,1.63852643,61401.0,61400.0,0.0009119]
[1723346784678,1.73589258,61401.0,61400.0,0.0009119]
[1723346784909,1.72502643,61401.0,61400.0,0.0009119]
[1723346785277,0.0781,61391.0,61381.0,0.00444243]
[1723346785537,0.304914,61382.0,61381.0,0.00444243]
[1723346785816,0.95657,61382.0,61381.0,0.00444243]
[1723346786545,0.814582,61381.0,61380.0,0.009119]
[1723346787313,0.878082,61381.0,61380.0,0.009119]
[1723346787528,0.956182,61381.0,61380.0,0.009119]
[1723346788343,2.07647216,61381.0,61380.0,0.009119]
[1723346788552,0.96625,61376.0,61375.0,0.009152]
[1723346788764,1.89734249,61376.0,61375.0,0.009152]
[1723346788924,1.93155485,61376.0,61375.0,0.009152]
[1723346789328,1.93155485,61376.0,61364.0,0.009152]
[1723346789329,0.172959,61365.0,61364.0,0.009152]
[1723346789564,1.27220992,61365.0,61364.0,0.009152]
[1723346789775,1.27220992,61365.0,61358.0,0.009152]
[1723346789776,0.01,61362.0,61358.0,0.009152]
[1723346789992,1.034975,61359.0,61358.0,0.009152]
[1723346790176,1.72123992,61359.0,61358.0,0.009152]
[1723346790526,1.76990106,61359.0,61358.0,0.009152]
[1723346790776,1.72123992,61359.0,61358.0,0.009152]
[1723346791129,1.72623992,61359.0,61358.0,0.009152]
[1723346791949,1.69323992,61359.0,61358.0,0.009152]
[1723346792385,1.203475,61359.0,61358.0,0.009152]
[1723346792569,1.139975,61359.0,61358.0,0.009152]
[1723346792952,1.139975,61359.0,61351.0,0.0001]
[1723346792953,0.335987,61352.0,61351.0,0.0001]
[1723346793082,0.73098,61352.0,61351.0,0.0001]
[1723346793324,1.382954,61352.0,61351.0,0.0001]
[1723346793593,1.056967,61352.0,61351.0,0.0001]
[1723346793810,0.73098,61352.0,61351.0,0.0001]
[1723346793996,0.304993,61352.0,61351.0,0.00454243]
[1723346794185,0.304993,61352.0,61351.0,0.0001]
[1723346794403,0.304993,61352.0,61351.0,0.00454243]
[1723346794541,0.63098,61352.0,61351.0,0.00454243]
[1723346794745,0.956967,61352.0,61351.0,0.0001]
[1723346796709,0.956967,61352.0,61351.0,0.00454243]
[1723346797421,0.63098,61352.0,61351.0,0.00454243]
[1723346797817,0.956967,61352.0,61351.0,0.0001]
[1723346798024,0.956967,61352.0,61351.0,0.00454243]
[1723346798992,0.956967,61352.0,61351.0,0.0001]
[1723346799417,0.956967,61352.0,61351.0,0.00454243]
[1723346799577,0.956967,61352.0,61351.0,0.0001]
[1723346799777,0.956967,61352.0,61351.0,0.0010163]
[1723346799978,0.956967,61352.0,61351.0,0.00545873]
[1723346802787,0.63098,61352.0,61351.0,0.00545873]
[1723346803796,0.48898,61352.0,61351.0,0.00545873]
[1723346804214,0.162993,61352.0,61351.0,0.00545873]
[1723346804421,0.1,61359.0,61351.0,0.00545873]
[1723346804422,0.4713,61363.0,61362.0,0.00444243]
[1723346804591,0.37414412,61393.0,61364.0,0.00444243]
[1723346804592,0.325864,61376.0,61364.0,0.00444243]
[1723346804809,0.325864,61376.0,61364.0,0.49332643]
[1723346805018,0.325864,61376.0,61364.0,0.81924943]
[1723346805395,0.162938,61373.0,61364.0,0.81924943]
[1723346805597,0.325864,61376.0,61364.0,0.81924943]
[1723346805598,0.162936,61374.0,61364.0,0.81924943]
[1723346805806,0.162933,61375.0,61364.0,1.06086435]
[1723346806008,0.142,61378.0,61364.0,1.06086435]
[1723346806209,0.16293,61376.0,61364.0,1.06086435]
[1723346806406,0.162933,61375.0,61364.0,1.06086435]
[1723346806611,0.162936,61374.0,61364.0,1.06086435]
[1723346806859,0.162939,61373.0,61364.0,1.06086435]
[1723346807199,0.325877,61373.0,61364.0,0.08224243]
[1723346807401,0.142,61372.0,61364.0,0.00444243]
[1723346807626,0.162949,61369.0,61364.0,0.16740343]
[1723346807876,0.325894,61370.0,61364.0,0.00444243]
[1723346808004,0.142,61372.0,61364.0,0.00444243]
[1723346808208,0.142,61372.0,61364.0,0.49332643]
[1723346808636,0.142,61372.0,61364.0,0.16740343]
[1723346808637,0.162952,61368.0,61364.0,0.16740343]
[1723346808859,0.488841,61370.0,61364.0,0.16740343]
[1723346809206,0.162949,61369.0,61364.0,0.16740343]
[1723346809402,0.162943,61371.0,61364.0,0.49332643]
[1723346810107,0.142,61372.0,61364.0,0.49332643]
[1723346810605,0.162949,61369.0,61364.0,0.16740343]
[1723346811029,0.162943,61371.0,61370.0,0.00444243]
[1723346812179,0.168943,61371.0,61370.0,0.00444243]
[1723346812587,0.006,61371.0,61370.0,0.00444243]
[1723346812794,0.168943,61371.0,61370.0,0.00444243]
[1723346813614,0.168943,61371.0,61370.0,0.89784135]
[1723346813615,0.006,61371.0,61370.0,0.89784135]
[1723346813883,0.006,61371.0,61370.0,1.45007935]
[1723346814819,0.162911,61383.0,61379.0,0.16736443]
[1723346815020,0.488734,61383.0,61382.0,0.00444243]
[1723346815220,0.162911,61383.0,61382.0,0.00444243]
[1723346815646,0.488734,61383.0,61382.0,0.00444243]
[1723346816224,0.48841329,61383.0,61382.0,0.00444243]
[1723346816587,0.571242,61382.0,61381.0,0.00444243]
[1723346816903,0.571242,61382.0,61366.0,0.325908]
[1723346816904,0.48879,61376.0,61375.0,0.00444243]
[1723346817101,0.81465,61376.0,61375.0,0.00444243]
[1723346817484,1.14051,61376.0,61375.0,0.00444243]
[1723346817842,0.488821,61372.0,61371.0,0.00444243]
[1723346818049,0.630821,61372.0,61371.0,0.00444243]
[1723346818365,0.956702,61372.0,61371.0,0.00444243]
[1723346818768,0.488845,61369.0,61368.0,0.00444243]
[1723346819498,0.814742,61369.0,61368.0,0.00444243]
[1723346819896,0.488845,61369.0,61368.0,0.00444243]
[1723346821070,0.489845,61369.0,61368.0,0.00444243]
[1723346821275,0.566545,61369.0,61368.0,0.00444243]
[1723346821629,0.566545,61369.0,61361.0,0.325939]
[1723346821630,0.162952,61368.0,61367.0,0.00444243]
[1723346821832,0.488854,61368.0,61367.0,0.00444243]
[1723346822277,0.814756,61368.0,61367.0,0.00444243]
[1723346822593,0.325859,61377.0,61373.0,0.00444243]
[1723346822797,0.1,61379.0,61378.0,0.00444243]
[1723346822964,0.588766,61379.0,61378.0,0.00444243]
[1723346823626,0.634219,61380.0,61379.0,0.00444243]
[1723346823846,0.325828,61382.0,61381.0,0.00444243]
[1723346824271,0.488742,61382.0,61381.0,0.00444243]
[1723346825299,0.496742,61382.0,61381.0,0.00444243]
[1723346826221,0.82257,61382.0,61381.0,0.00444243]
[1723346826430,0.496742,61382.0,61381.0,0.00444243]
[1723346829910,0.82257,61382.0,61381.0,0.00444243]
[1723346830552,0.162924,61378.0,61377.0,0.00444243]
[1723346830870,0.239624,61378.0,61377.0,0.00444243]
[1723346831023,0.162924,61378.0,61377.0,0.00444243]
[1723346831466,0.488773,61378.0,61377.0,0.00444243]
[1723346831903,0.814622,61378.0,61377.0,0.00444243]
[1723346832559,0.817622,61378.0,61377.0,0.00444243]
[1723346833717,0.162935,61374.0,61373.0,0.00444243]
[1723346834441,0.488805,61374.0,61373.0,0.00444243]
[1723346834612,0.142,61378.0,61377.0,0.00444243]
[1723346834820,0.81465,61376.0,61375.0,0.00444243]
[1723346836902,0.48879,61376.0,61375.0,0.00444243]
[1723346837711,0.49613202,61376.0,61375.0,0.00444243]
[1723346838046,0.49813202,61376.0,61375.0,0.00444243]
[1723346838648,0.49613202,61376.0,61375.0,0.00444243]
[1723346839061,0.17127202,61376.0,61375.0,0.00444243]
[1723346839266,0.00834202,61376.0,61375.0,0.30747443]
[1723346839472,0.001,61376.0,61375.0,0.30747443]
[1723346839668,0.001,61376.0,61375.0,0.63333943]
[1723346840105,0.001,61376.0,61375.0,0.95920443]
[1723346840273,0.001,61376.0,61375.0,0.63333943]
[1723346840624,0.001,61376.0,61375.0,0.79715435]
[1723346840902,0.001,61376.0,61375.0,1.12301935]
[1723346841398,0.001,61376.0,61375.0,0.79715435]
[1723346841756,0.001,61376.0,61375.0,1.58420418]
[1723346841961,0.001,61376.0,61375.0,1.25833918]
[1723346842166,0.001,61376.0,61375.0,1.58420418]
[1723346843586,0.001,61376.0,61375.0,1.44888435]
[1723346843764,0.001,61376.0,61375.0,1.58418623]
[1723346844321,0.001,61376.0,61375.0,1.58418538]
[1723346844689,0.000832,61383.0,61382.0,0.49318443]
[1723346844884,0.000832,61383.0,61382.0,0.79230038]
[1723346845653,0.000832,61383.0,61382.0,1.11812838]
[1723346845973,0.001832,61383.0,61382.0,1.11912838]
[1723346846468,0.000832,61383.0,61382.0,1.58405638]
[1723346846668,0.000832,61383.0,61382.0,1.90988438]
[1723346846927,0.000832,61383.0,61382.0,1.91988438]
[1723346847161,0.000832,61383.0,61382.0,1.90988438]
[1723346847312,0.000832,61383.0,61382.0,1.91988438]
[1723346847510,0.000832,61383.0,61382.0,2.25661117]
[1723346847717,0.000832,61383.0,61382.0,2.25861117]
[1723346848302,0.000832,61383.0,61382.0,1.92078317]
[1723346848505,0.001832,61383.0,61382.0,1.68505638]
[1723346848805,0.001832,61383.0,61382.0,1.69505638]
[1723346849003,0.000832,61383.0,61382.0,2.01985772]
[1723346849205,0.000832,61383.0,61382.0,2.02185772]
[1723346849405,0.001832,61383.0,61382.0,2.06585772]
[1723346849631,0.001832,61383.0,61382.0,2.05585772]
[1723346849789,0.001832,61383.0,61382.0,2.04585772]
[1723346849995,0.001832,61383.0,61382.0,1.93058335]
[1723346850391,0.001832,61383.0,61382.0,2.06585076]
[1723346850596,0.001832,61383.0,61382.0,1.93058335]
[1723346850741,0.001832,61383.0,61382.0,2.12241899]
[1723346850941,0.001832,61383.0,61382.0,2.06585024]
[1723346851472,0.001832,61383.0,61382.0,1.71802224]
[1723346851676,0.001832,61383.0,61382.0,2.06585024]
[1723346852417,0.001832,61383.0,61382.0,2.20785024]
[1723346852823,0.000832,61383.0,61382.0,2.26341826]
[1723346853250,0.001832,61383.0,61382.0,2.22085024]
[1723346853619,0.001832,61383.0,61382.0,2.27741271]
[1723346854387,0.001832,61383.0,61382.0,2.26340503]
[1723346854587,0.000832,61383.0,61382.0,2.07158335]
[1723346854851,0.000832,61383.0,61382.0,2.08558335]
[1723346855031,0.000832,61383.0,61382.0,2.22084195]
[1723346855337,0.000832,61383.0,61382.0,2.20684195]
[1723346855507,0.000832,61383.0,61382.0,2.2634022]
[1723346855710,0.000832,61383.0,61382.0,2.2774022]
[1723346856113,0.000832,61383.0,61382.0,2.1214022]
[1723346856295,0.000832,61383.0,61382.0,2.06484195]
[1723346856495,0.000832,61383.0,61382.0,2.1354022]
[1723346857099,0.000832,61383.0,61382.0,2.07884195]
[1723346857338,0.000832,61383.0,61382.0,2.80884195]
[1723346857553,0.000832,61383.0,61382.0,2.40466995]
[1723346857764,0.000832,61383.0,61382.0,2.06284195]
[1723346857965,0.000832,61383.0,61382.0,2.11939973]
[1723346858114,0.000832,61383.0,61382.0,2.09039973]
[1723346858482,0.000832,61383.0,61382.0,2.03384195]
[1723346858757,0.000832,61383.0,61382.0,2.01984195]
[1723346859058,0.000832,61383.0,61382.0,2.03384195]
[1723346859518,0.000832,61383.0,61382.0,2.01984195]
[1723346860537,0.000832,61383.0,61382.0,2.03384195]
[1723346861289,0.000832,61383.0,61382.0,2.05684195]
[1723346861468,0.000832,61383.0,61382.0,2.05884195]
[1723346861689,0.000832,61383.0,61382.0,2.05684195]
[1723346861868,0.000832,61383.0,61382.0,2.04284195]
[1723346862081,0.000832,61383.0,61382.0,2.05775715]
[1723346862314,0.000832,61383.0,61382.0,2.07975715]
[1723346862487,0.000832,61383.0,61382.0,2.22175715]
[1723346862687,0.000832,61383.0,61382.0,2.20775715]
[1723346862886,0.000832,61383.0,61382.0,3.19445196]
[1723346863187,0.000832,61383.0,61382.0,3.53427996]
[1723346863345,0.000832,61383.0,61382.0,3.72054678]
[1723346863733,0.000832,61383.0,61382.0,3.73454678]
[1723346863940,0.000832,61383.0,61382.0,3.73583327]
[1723346864731,1e-06,61383.0,61382.0,3.73583327]
[1723346864934,0.064432,61418.0,61417.0,0.00444243]
[1723346864935,0.000832,61418.0,61417.0,0.00444243]
[1723346865163,0.000832,61418.0,61417.0,0.98236235]
[1723346865367,0.0001,61429.0,61418.0,0.0661]
[1723346865573,0.12505653,61455.0,61418.0,0.0661]
[1723346865574,0.00340347,61460.0,61445.0,0.00444243]
[1723346865778,0.08330572,61464.0,61458.0,0.325421]
[1723346865779,0.0104318,61464.0,61458.0,0.325421]
[1723346865995,0.0104318,61464.0,61463.0,0.488098]
[1723346866194,0.0104318,61464.0,61463.0,0.813497]
[1723346866393,0.0054318,61464.0,61463.0,0.65191292]
[1723346866611,0.0828318,61464.0,61455.0,0.08184646]